bitfinex-derivatives/quotes_BNBF0:USTF0_20250810
["timestamp","ask_amount","ask_price","bid_price","bid_amount"]
[1754820499309,1.1165624,802.49,801.75,0.21654382]
[1754820499804,1.1165624,802.51,801.75,0.21654382]
[1754820502407,1.1165624,802.52,801.75,0.21654382]
[1754820503513,1.1165624,802.5,801.75,0.21654382]
[1754820504415,1.1165624,802.51,801.75,0.21654382]
[1754820505513,1.1165624,802.5,801.75,0.21654382]
[1754820505920,1.1165624,802.54,801.75,0.21654382]
[1754820506217,1.1165624,802.53,801.75,0.21654382]
[1754820506726,1.1165624,802.27,801.75,0.21654382]
[1754820507417,1.1165624,802.25,801.75,0.21654382]
[1754820507817,1.1165624,802.27,801.75,0.21654382]
[1754820509823,1.1165624,802.26,801.75,0.21654382]
[1754820511220,1.1165624,802.27,801.75,0.21654382]
[1754820513123,1.1165624,802.25,801.75,0.21654382]
[1754820513327,1.1165624,802.27,801.75,0.21654382]
[1754820513627,1.1165624,802.25,801.75,0.21654382]
[1754820514027,1.1165624,802.2,801.75,0.21654382]
[1754820514232,1.1165624,802.18,801.75,0.21654382]
[1754820514433,1.1165624,802.17,801.75,0.21654382]
[1754820516236,1.1165624,802.19,801.75,0.21654382]
[1754820516636,1.1165624,802.25,801.75,0.21654382]
[1754820517331,1.1165624,802.26,801.75,0.21654382]
[1754820517637,1.1165624,802.3,801.75,0.21654382]
[1754820518233,1.1165624,802.31,801.75,0.21654382]
[1754820518433,1.1165624,802.3,801.75,0.21654382]
[1754820518734,1.1165624,802.28,801.75,0.21654382]
[1754820519236,1.1165624,802.27,801.75,0.21654382]
[1754820519434,1.1165624,802.28,801.75,0.21654382]
[1754820523541,1.1165624,802.29,801.75,0.21654382]
[1754820523841,1.1165624,802.28,801.75,0.21654382]
[1754820525746,1.1165624,802.27,801.75,0.21654382]
[1754820526748,1.1165624,802.25,801.75,0.21654382]
[1754820527649,1.1165624,802.18,801.75,0.21654382]
[1754820528450,1.1165624,802.17,801.75,0.21654382]
[1754820528650,1.1165624,802.16,801.75,0.21654382]
[1754820531252,1.1165624,802.17,801.75,0.21654382]
[1754820532951,1.1165624,802.21,801.75,0.21654382]
[1754820533247,1.1165624,802.18,801.75,0.21654382]
[1754820533451,1.1165624,802.17,801.75,0.21654382]
[1754820534150,1.1165624,802.16,801.75,0.21654382]
[1754820534350,1.1165624,802.14,801.75,0.21654382]
[1754820534650,1.1165624,802.11,801.75,0.21654382]
[1754820535447,1.1165624,802.1,801.75,0.21654382]
[1754820536351,1.1165624,802.11,801.75,0.21654382]
[1754820536747,1.1165624,802.09,801.75,0.21654382]
[1754820537351,1.1165624,802.1,801.75,0.21654382]
[1754820538255,1.1165624,802.09,801.75,0.21654382]
[1754820538454,1.1165624,802.1,801.75,0.21654382]
[1754820541057,1.1165624,802.08,801.75,0.21654382]
[1754820541257,1.1165624,802.07,801.75,0.21654382]
[1754820541957,1.1165624,802.09,801.75,0.21654382]
[1754820542254,1.1165624,802.07,801.75,0.21654382]
[1754820542456,1.1165624,802.09,801.75,0.21654382]
[1754820543253,1.1165624,802.08,801.75,0.21654382]
[1754820543958,1.1165624,802.09,801.75,0.21654382]
[1754820544157,1.1165624,802.03,801.75,0.21654382]
[1754820544459,1.1165624,802.0,801.75,0.21654382]
[1754820544953,1.1165624,801.98,801.75,0.21654382]
[1754820546358,1.1165624,801.83,801.75,0.21654382]
[1754820546558,1.1165624,801.84,801.75,0.21654382]
[1754820546758,1.1165624,801.93,801.75,0.21654382]
[1754820546955,1.1165624,801.92,801.75,0.21654382]
[1754820551357,1.1165624,801.91,801.75,0.21654382]
[1754820551760,1.1165624,801.93,801.75,0.21654382]
[1754820552164,1.1165624,802.0,801.75,0.21654382]
[1754820552364,1.1165624,802.01,801.75,0.21654382]
[1754820552764,1.1165624,802.08,801.75,0.21654382]
[1754820553362,1.1165624,802.14,801.75,0.21654382]
[1754820553566,1.1165624,802.18,801.75,0.21654382]
[1754820553862,1.1165624,802.23,801.75,0.21654382]
[1754820554062,1.1165624,802.28,801.75,0.21654382]
[1754820554261,1.1165624,802.27,801.75,0.21654382]
[1754820555266,1.1165624,802.26,801.75,0.21654382]
[1754820556668,1.1165624,802.07,801.75,0.21654382]
[1754820557269,1.1165624,801.96,801.75,0.21654382]
[1754820557565,1.1165624,801.91,801.75,0.21654382]
[1754820558264,1.1165624,801.9,801.75,0.21654382]
[1754820561166,1.1165624,801.94,801.75,0.21654382]
[1754820561668,1.1165624,801.95,801.75,0.21654382]
[1754820563266,1.67777077,802.12,801.75,0.21654382]
[1754820563267,1.1165624,801.94,801.75,0.21654382]
[1754820563667,1.1165624,801.93,801.75,0.21654382]
[1754820564371,1.1165624,801.92,801.75,0.21654382]
[1754820566169,2.79290881,802.8,801.75,0.21654382]
[1754820566170,1.1165624,801.91,801.75,0.21654382]
[1754820566774,1.1165624,801.96,801.75,0.21654382]
[1754820566973,1.1165624,801.95,801.75,0.21654382]
[1754820567173,1.1165624,801.92,801.75,0.21654382]
[1754820567374,1.1165624,801.79,801.75,0.21654382]
[1754820570274,1.1165624,801.78,801.75,0.21654382]
[1754820570484,1.1165624,801.85,801.75,0.21654382]
[1754820570782,1.1165624,801.87,801.75,0.21654382]
[1754820571184,1.1165624,801.86,801.75,0.21654382]
[1754820571385,1.1165624,801.85,801.75,0.21654382]
[1754820572581,1.1165624,801.84,801.75,0.21654382]
[1754820572786,1.1165624,801.87,801.75,0.21654382]
[1754820572983,1.1165624,801.86,801.75,0.21654382]
[1754820573387,1.1165624,801.85,801.75,0.21654382]
[1754820574088,1.1165624,801.82,801.75,0.21654382]
[1754820574389,1.67777077,801.8,801.75,0.21654382]
[1754820574783,1.67777077,801.79,801.75,0.21654382]
[1754820575388,1.67777077,801.8,801.75,0.21654382]
[1754820576485,1.67777077,801.81,801.75,0.21654382]
[1754820576988,1.67777077,801.86,801.75,0.21654382]
[1754820577491,1.67777077,801.87,801.75,0.21654382]
[1754820579794,1.67777077,801.85,801.75,0.21654382]
[1754820579990,1.67777077,801.83,801.75,0.21654382]
[1754820580195,1.67777077,801.78,801.75,0.21654382]
[1754820580397,1.67777077,801.79,801.75,0.21654382]
[1754820580991,1.67777077,801.8,801.75,0.21654382]
[1754820581395,1.67777077,801.77,801.75,0.21654382]
[1754820581692,2.79290881,802.41,801.75,0.21654382]
[1754820581895,0.67118079,802.4,801.75,0.21654382]
[1754820582195,0.67118079,802.39,801.75,0.21654382]
[1754820582495,1.6714596,801.76,801.75,0.21654382]
[1754820582695,2.79290881,802.42,801.75,0.21654382]
[1754820582891,0.67109205,802.41,801.75,0.21654382]
[1754820583195,0.67109205,802.4,801.75,0.21654382]
[1754820583391,1.67125755,801.76,801.75,0.21654382]
[1754820584398,1.67125755,801.77,801.75,0.21654382]
[1754820585599,2.79290881,802.43,801.75,0.21654382]
[1754820585797,2.79290881,802.41,801.75,0.21654382]
[1754820586097,0.67081083,802.4,801.75,0.21654382]
[1754820586296,2.79290881,802.36,801.75,0.21654382]
[1754820586501,0.67073329,802.35,801.75,0.21654382]
[1754820586801,2.79290881,802.31,801.75,0.00312432]
[1754820587099,0.67073329,802.3,800.88,0.5]
[1754820587294,1.11394454,801.51,800.88,0.5]
[1754820587500,1.11394454,801.53,800.88,0.5]
[1754820587800,1.11394454,801.55,800.88,0.5]
[1754820588399,1.11394454,801.56,800.88,0.5]
[1754820589297,1.11394454,801.54,800.88,0.5]
[1754820589502,1.11394454,801.55,800.88,0.5]
[1754820590001,1.11394454,801.55,801.04,0.21687445]
[1754820590201,1.11394454,801.54,801.04,0.21687445]
[1754820590401,1.11394454,801.53,801.04,0.21687445]
[1754820592303,1.11394454,801.52,801.04,0.21687445]
[1754820592504,1.11394454,801.53,801.04,0.21687445]
[1754820592904,1.11394454,801.83,801.04,0.21687445]
[1754820594303,1.11394454,801.84,801.04,0.21687445]
[1754820596401,1.11394454,801.85,801.04,0.21687445]
[1754820596906,1.11394454,801.88,801.04,0.21687445]
[1754820598302,1.11394454,801.89,801.04,0.21687445]
[1754820601610,1.11394454,801.9,801.04,0.21687445]
[1754820602907,1.11394454,801.65,801.04,0.21687445]
[1754820603109,1.11394454,801.93,801.04,0.21687445]
[1754820603406,1.11394454,801.92,801.04,0.21687445]
[1754820604506,1.67091681,802.18,801.04,0.21687445]
[1754820604507,1.11394454,801.93,801.04,0.21687445]
[1754820606313,1.11394454,801.91,801.04,0.21687445]
[1754820606507,1.11394454,801.89,801.04,0.21687445]
[1754820606709,1.11394454,801.82,801.04,0.21687445]
[1754820607311,1.11394454,801.83,801.04,0.21687445]
[1754820610515,2.79290881,803.1,801.04,0.21687445]
[1754820610516,1.11394454,801.87,801.04,0.21687445]
[1754820611217,1.11394454,801.64,801.04,0.21687445]
[1754820611416,1.11394454,801.69,801.04,0.21687445]
[1754820612016,1.11394454,801.72,801.04,0.21687445]
[1754820612311,1.11394454,801.76,801.04,0.21687445]
[1754820612816,1.11394454,801.79,801.04,0.21687445]
[1754820613617,1.11394454,801.81,801.04,0.21687445]
[1754820613912,1.11394454,801.82,801.04,0.21687445]
[1754820614114,1.11394454,801.96,801.04,0.21687445]
[1754820614416,1.11394454,801.97,801.04,0.21687445]
[1754820614617,1.11394454,801.97,801.15,0.5]
[1754820615317,1.11394454,801.96,801.15,0.5]
[1754820616317,1.11394454,801.94,801.15,0.5]
[1754820616619,1.11394454,801.95,801.15,0.5]
[1754820617418,1.11394454,801.93,801.15,0.5]
[1754820617919,1.11394454,801.94,801.15,0.5]
[1754820618515,1.11394454,801.93,801.15,0.5]
[1754820621419,1.11394454,801.92,801.15,0.5]
[1754820621619,1.11394454,801.9,801.33,0.5]
[1754820622322,1.11394454,801.89,801.33,0.5]
[1754820623325,1.11394454,801.88,801.33,0.5]
[1754820623826,1.11394454,801.87,801.33,0.5]
[1754820624122,1.11394454,801.82,801.33,0.5]
[1754820624326,1.11394454,801.83,801.33,0.5]
[1754820624626,1.11394454,801.82,801.33,0.5]
[1754820625322,1.11394454,801.81,801.33,0.5]
[1754820625927,1.11394454,801.86,801.33,0.5]
[1754820626322,1.11394454,802.29,801.33,0.5]
[1754820626626,1.11394454,802.42,801.33,0.5]
[1754820627121,1.11394454,802.43,801.33,0.5]
[1754820627323,1.11394454,802.27,801.51,0.5]
[1754820627529,1.11394454,802.26,801.51,0.5]
[1754820627826,1.11394454,802.24,801.51,0.5]
[1754820628326,1.11394454,802.25,801.51,0.5]
[1754820629127,1.11394454,802.19,801.51,0.5]
[1754820629323,1.11394454,802.22,801.51,0.5]
[1754820629629,1.11394454,802.2,801.51,0.5]
[1754820630327,1.11394454,802.22,801.51,0.5]
[1754820630526,1.11394454,802.25,801.51,0.5]
[1754820631630,1.11394454,802.29,801.51,0.5]
[1754820632230,1.11394454,802.31,801.51,0.5]
[1754820632527,1.11394454,802.35,801.51,0.5]
[1754820633228,2.79290881,803.15,801.51,0.5]
[1754820633229,1.11394454,802.36,801.51,0.5]
[1754820633425,1.11394454,802.37,801.51,0.5]
[1754820634126,1.11394454,802.38,801.51,0.5]
[1754820634330,1.11394454,802.39,801.52,1.373]
[1754820634634,1.11394454,802.4,801.52,1.373]
[1754820635229,2.79290881,803.22,801.52,1.373]
[1754820635230,1.11394454,802.43,801.52,1.373]
[1754820635434,2.79290881,803.22,801.52,1.373]
[1754820635435,1.11394454,802.44,801.52,1.373]
[1754820636238,1.11394454,802.46,801.52,1.373]
[1754820636735,1.11394454,802.55,801.52,1.373]
[1754820637238,1.11394454,802.64,801.52,1.373]
[1754820637439,1.11394454,802.65,801.52,1.373]
[1754820638339,1.11394454,802.67,801.52,1.373]
[1754820638742,1.11394454,802.85,801.7,0.5]
[1754820639036,1.11394454,802.96,801.7,0.5]
[1754820639237,1.11394454,802.87,801.7,0.5]
[1754820639836,1.11394454,802.87,801.61,0.5]
[1754820640341,1.11394454,802.93,801.61,0.5]
[1754820641038,1.11394454,802.93,801.69,0.348]
[1754820641244,1.11394454,802.94,801.61,0.5]
[1754820641439,1.11394454,802.9,801.61,0.5]
[1754820642245,1.11394454,802.92,801.64,0.348]
[1754820642446,1.11394454,802.92,801.61,0.5]
[1754820643143,1.11394454,802.94,801.61,0.5]
[1754820644141,1.11394454,802.96,801.61,0.5]
[1754820645245,1.11394454,802.97,801.61,0.5]
[1754820645641,1.11394454,802.95,801.61,0.5]
[1754820646243,1.11394454,802.96,801.61,0.5]
[1754820646647,1.11394454,802.78,801.61,0.5]
[1754820647142,1.11394454,802.79,801.61,0.5]
[1754820647648,0.21663886,803.47,801.61,0.5]
[1754820647649,1.11394454,802.76,801.61,0.5]
[1754820648145,1.11394454,802.77,801.61,0.5]
[1754820648345,1.11394454,802.76,801.61,0.5]
[1754820648547,1.11394454,802.74,801.61,0.5]
[1754820649150,1.11394454,802.73,801.61,0.5]
[1754820649350,1.11394454,802.75,801.61,0.5]
[1754820650049,1.11394454,802.71,801.61,0.5]
[1754820651150,1.11394454,802.69,801.61,0.5]
[1754820651650,1.11394454,802.67,801.61,0.5]
[1754820651850,1.11394454,802.68,801.61,0.5]
[1754820654053,1.11394454,802.66,801.61,0.5]
[1754820654253,1.11394454,802.67,801.61,0.5]
[1754820654452,1.11394454,802.66,801.61,0.5]
[1754820654953,1.11394454,802.67,801.61,0.5]
[1754820655352,1.11394454,802.66,801.61,0.5]
[1754820656657,1.11394454,802.7,801.61,0.5]
[1754820657357,1.11394454,802.69,801.61,0.5]
[1754820658355,1.11394454,802.68,801.61,0.5]
[1754820659157,1.11394454,802.67,801.61,0.5]
[1754820659357,1.11394454,802.66,801.61,0.5]
[1754820661358,1.11394454,802.64,801.61,0.5]
[1754820661761,1.11394454,802.58,801.61,0.5]
[1754820661959,1.11394454,802.6,801.61,0.5]
[1754820662157,1.11394454,802.59,801.61,0.5]
[1754820662362,1.11394454,802.54,801.57,0.346]
[1754820662564,1.11394454,802.55,801.52,1.373]
[1754820662963,1.11394454,802.54,801.52,1.373]
[1754820663265,1.11394454,802.53,801.52,1.373]
[1754820664264,1.11394454,802.52,801.52,1.373]
[1754820664462,1.11394454,802.51,801.52,1.373]
[1754820665166,1.11394454,802.5,801.52,1.373]
[1754820665366,1.11394454,802.49,801.52,1.373]
[1754820666266,1.11394454,802.47,801.52,1.373]
[1754820666466,1.11394454,802.49,801.52,1.373]
[1754820666762,1.11394454,802.48,801.52,1.373]
[1754820667166,1.11394454,802.46,801.52,1.373]
[1754820668166,1.11394454,802.43,801.52,1.373]
[1754820668366,1.11394454,802.42,801.5,0.5]
[1754820669065,1.11394454,802.39,801.5,0.5]
[1754820669760,1.11394454,802.4,801.5,0.5]
[1754820670065,1.67091681,802.56,801.5,0.5]
[1754820670066,1.11394454,802.39,801.5,0.5]
[1754820670366,1.11394454,802.33,801.5,0.5]
[1754820670866,1.11394454,802.32,801.5,0.5]
[1754820671363,1.11394454,802.29,801.5,0.5]
[1754820671564,1.11394454,802.31,801.5,0.5]
[1754820671763,1.11394454,802.31,801.51,1.317]
[1754820671962,1.11394454,802.32,801.51,1.317]
[1754820672263,1.11394454,802.29,801.51,1.317]
[1754820672968,1.11394454,802.28,801.51,1.317]
[1754820673263,1.11394454,802.26,801.51,1.317]
[1754820674167,1.11394454,802.25,801.51,1.317]
[1754820674369,1.11394454,802.26,801.51,1.317]
[1754820675164,1.11394454,802.25,801.51,1.317]
[1754820676268,3.91007233,803.4,801.51,1.317]
[1754820676269,1.11394454,802.24,801.51,1.317]
[1754820676467,1.11394454,802.25,801.51,1.317]
[1754820676667,1.11394454,802.43,801.51,1.317]
[1754820677170,1.11394454,802.42,801.51,1.317]
[1754820678266,2.79290881,803.25,801.51,1.317]
[1754820678267,1.11394454,802.41,801.51,1.317]
[1754820679172,1.11394454,802.4,801.51,1.317]
[1754820679368,1.11394454,802.39,801.51,1.317]
[1754820680170,1.11394454,802.38,801.51,1.317]
[1754820680568,1.11394454,802.37,801.51,1.317]
[1754820681275,1.11394454,802.36,801.51,1.317]
[1754820681872,1.11394454,802.35,801.57,0.348]
[1754820682074,1.11394454,802.35,801.51,1.317]
[1754820682276,1.11394454,802.34,801.51,1.317]
[1754820682981,1.11394454,802.34,801.54,0.348]
[1754820683178,1.11394454,802.32,801.54,0.348]
[1754820683376,1.11394454,802.32,801.51,1.317]
[1754820684076,1.11394454,802.31,801.51,1.317]
[1754820684277,1.11394454,802.3,801.51,1.317]
[1754820685273,1.11394454,802.28,801.51,1.317]
[1754820685577,1.11394454,802.28,801.56,0.348]
[1754820685776,1.11394454,802.28,801.51,1.317]
[1754820686178,1.11394454,802.26,801.51,1.317]
[1754820686477,1.11394454,802.27,801.51,1.317]
[1754820686679,1.11394454,802.08,801.51,1.317]
[1754820687174,1.11394454,802.07,801.51,1.317]
[1754820688277,1.11394454,802.06,801.51,1.317]
[1754820689484,1.11394454,802.05,801.51,1.317]
[1754820691490,1.11394454,802.06,801.51,1.317]
[1754820691789,1.11394454,802.04,801.51,1.317]
[1754820691988,1.11394454,802.05,801.51,1.317]
[1754820695692,1.67091681,802.21,801.51,1.317]
[1754820696387,1.67091681,802.17,801.51,1.317]
[1754820696590,1.67091681,802.24,801.51,1.317]
[1754820696891,1.67091681,802.28,801.51,1.317]
[1754820698095,1.67091681,802.29,801.54,0.342]
[1754820698296,1.67091681,802.29,801.52,0.5]
[1754820698895,1.67091681,802.29,801.54,0.342]
[1754820699091,1.67091681,802.29,801.52,0.5]
[1754820699296,1.67091681,802.28,801.52,0.5]
[1754820699496,1.67091681,802.29,801.52,0.5]
[1754820700193,1.67091681,802.34,801.52,0.5]
[1754820700492,1.67091681,802.33,801.52,0.5]
[1754820700693,1.67091681,802.34,801.52,0.5]
[1754820700893,1.67091681,802.35,801.52,0.5]
[1754820701093,1.67091681,802.34,801.52,0.5]
[1754820701492,1.67091681,802.37,801.52,0.5]
[1754820704199,1.67091681,802.36,801.52,0.5]
[1754820706293,1.67091681,802.35,801.55,0.342]
[1754820706493,1.67091681,802.35,801.51,1.317]
[1754820706693,1.67091681,802.34,801.51,1.317]
[1754820707799,1.67091681,802.32,801.51,1.317]
[1754820707994,1.67091681,802.31,801.51,1.317]
[1754820708196,1.67091681,802.3,801.54,0.344]
[1754820708498,1.67091681,802.3,801.51,1.317]
[1754820709900,1.67091681,802.29,801.51,1.317]
[1754820710801,1.67091681,802.28,801.51,1.317]
[1754820711300,1.67091681,802.27,801.51,1.317]
[1754820711497,1.67091681,802.24,801.51,1.317]
[1754820712498,1.67091681,802.69,801.51,1.317]
[1754820712699,1.67091681,802.68,801.51,1.317]
[1754820713098,1.67091681,802.65,801.51,1.317]
[1754820713397,1.67091681,802.59,801.74,0.5]
[1754820713598,1.67091681,802.57,801.74,0.5]
[1754820714001,1.67091681,802.45,801.74,0.5]
[1754820714199,2.79290881,803.35,801.74,0.5]
[1754820714200,1.67091681,802.43,801.74,0.5]
[1754820714503,1.67091681,802.41,801.74,0.5]
[1754820715103,1.67091681,802.46,801.74,0.5]
[1754820715303,1.67091681,802.48,801.74,0.5]
[1754820716300,1.67091681,802.53,801.74,0.5]
[1754820716600,1.67091681,802.54,801.74,0.5]
[1754820717703,1.67091681,802.52,801.74,0.5]
[1754820717900,1.67091681,802.57,801.74,0.5]
[1754820718101,1.67091681,802.54,801.74,0.5]
[1754820718804,1.67091681,802.52,801.74,0.5]
[1754820719505,1.67091681,802.53,801.74,0.5]
[1754820719706,1.67091681,802.54,801.74,0.5]
[1754820720004,1.67091681,802.57,801.74,0.5]
[1754820720602,1.67091681,802.56,801.74,0.5]
[1754820720809,1.67091681,802.48,801.74,0.5]
[1754820721507,1.67091681,802.51,801.74,0.5]
[1754820722502,1.67091681,802.67,801.74,0.5]
[1754820722904,1.67091681,802.69,801.74,0.5]
[1754820723704,1.67091681,802.42,801.74,0.5]
[1754820725206,1.67091681,802.3,801.74,0.5]
[1754820725405,1.67091681,802.28,801.74,0.5]
[1754820725809,1.1165555,802.1,801.74,0.5]
[1754820726008,1.1165555,802.07,801.55,0.5]
[1754820726208,1.1165555,802.07,801.52,0.5]
[1754820726709,1.1165555,802.24,801.52,0.5]
[1754820727304,1.1165555,802.24,801.53,0.9]
[1754820729209,1.1165555,802.23,801.53,0.9]
[1754820729405,1.1165555,802.22,801.53,0.9]
[1754820729805,1.1165555,802.21,801.53,0.9]
[1754820731010,1.1165555,802.2,801.53,0.9]
[1754820732211,1.1165555,802.19,801.53,0.9]
[1754820734113,1.1165555,802.2,801.53,0.9]
[1754820734309,1.1165555,802.21,801.53,0.9]
[1754820735513,1.1165555,802.42,801.53,0.9]
[1754820735814,1.1165555,802.28,801.53,0.9]
[1754820736314,1.1165555,802.22,801.53,0.9]
[1754820736508,1.1165555,802.19,801.53,0.9]
[1754820736711,1.1165555,802.07,801.53,0.9]
[1754820737113,1.1165555,802.05,801.53,0.9]
[1754820737414,1.1165555,802.04,801.53,0.9]
[1754820738111,1.1165555,802.05,801.53,0.9]
[1754820738411,1.1165555,802.02,801.53,0.9]
[1754820739913,1.1165555,802.0,801.53,0.9]
[1754820740416,1.1165555,802.01,801.53,0.9]
[1754820741310,1.1165555,802.02,801.53,0.9]
[1754820741915,1.1165555,802.01,801.53,0.9]
[1754820742315,1.1165555,802.02,801.53,0.9]
[1754820744320,1.1165555,801.97,801.53,0.9]
[1754820744521,3.91007233,803.26,801.53,0.9]
[1754820744522,1.1165555,801.9,801.53,0.9]
[1754820745222,1.1165555,801.91,801.53,0.9]
[1754820745418,1.1165555,801.89,801.53,0.9]
[1754820746117,1.1165555,801.9,801.53,0.9]
[1754820746724,1.1165555,801.88,801.53,0.9]
[1754820747020,1.1165555,801.9,801.53,0.9]
[1754820747220,1.1165555,801.92,801.53,0.9]
[1754820747626,1.1165555,801.95,801.53,0.9]
[1754820748419,1.1165555,802.0,801.53,0.9]
[1754820748619,1.1165555,802.09,801.53,0.9]
[1754820750520,1.1165555,802.16,801.53,0.9]
[1754820750824,1.1165555,802.17,801.53,0.9]
[1754820751017,1.1165555,802.21,801.53,0.9]
[1754820751420,1.1165555,802.18,801.53,0.9]
[1754820752224,1.1165555,802.17,801.53,0.9]
[1754820752420,1.1165555,802.18,801.53,0.9]
[1754820752925,1.1165555,802.17,801.53,0.9]
[1754820753322,1.1165555,802.21,801.53,0.9]
[1754820753525,1.1165555,802.23,801.53,0.9]
[1754820754121,1.1165555,802.25,801.53,0.9]
[1754820756529,1.1165555,802.25,801.33,0.5]
[1754820756728,1.1165555,802.23,801.33,0.5]
[1754820757732,1.1165555,802.25,801.33,0.5]
[1754820758429,1.1165555,802.26,801.33,0.5]
[1754820758828,1.1165555,802.24,801.34,1.148]
[1754820759033,1.1165555,802.29,801.34,1.148]
[1754820759434,1.1165555,802.3,801.34,1.148]
[1754820761035,1.1165555,802.32,801.34,1.148]
[1754820762437,1.1165555,802.29,801.34,1.148]
[1754820762635,1.1165555,802.23,801.34,1.148]
[1754820763334,1.1165555,802.24,801.34,1.148]
[1754820764031,1.1165555,802.25,801.34,1.148]
[1754820764236,1.1165555,802.24,801.34,1.148]
[1754820764433,1.1165555,802.25,801.53,0.5]
[1754820765236,1.1165555,802.24,801.53,0.5]
[1754820765437,1.1165555,802.25,801.53,0.5]
[1754820765933,1.1165555,802.23,801.53,0.5]
[1754820766538,1.1165555,802.2,801.53,0.5]
[1754820766939,1.1165555,802.4,801.53,0.5]
[1754820767140,1.1165555,802.39,801.53,0.5]
[1754820767439,1.1165555,802.4,801.53,0.5]
[1754820768237,1.1165555,802.39,801.53,0.5]
[1754820768442,1.1165555,802.4,801.53,0.5]
[1754820769249,1.1165555,802.39,801.53,0.5]
[1754820769450,1.1165555,802.4,801.53,0.5]
[1754820770146,1.1165555,802.39,801.53,0.5]
[1754820770349,1.1165555,802.4,801.53,0.5]
[1754820771449,1.1165555,802.39,801.53,0.5]
[1754820771750,1.1165555,802.4,801.53,0.5]
[1754820772249,1.1165555,802.39,801.53,0.5]
[1754820772450,1.1165555,802.4,801.54,0.889]
[1754820772951,1.1165555,802.43,801.54,0.889]
[1754820773246,1.1165555,802.41,801.54,0.889]
[1754820774344,1.1165555,802.4,801.54,0.889]
[1754820775150,1.1165555,802.43,801.54,0.889]
[1754820775347,1.1165555,802.42,801.54,0.889]
[1754820776347,1.1165555,802.41,801.54,0.889]
[1754820776859,1.1165555,802.22,801.54,0.889]
[1754820777455,1.1165555,802.21,801.54,0.889]
[1754820779360,1.1165555,802.2,801.54,0.889]
[1754820780257,1.1165555,802.21,801.54,0.889]
[1754820780861,1.1165555,802.22,801.54,0.889]
[1754820782762,1.1165555,802.19,801.54,0.889]
[1754820784966,1.1165555,802.17,801.54,0.889]
[1754820785366,1.67091681,802.3,801.54,0.889]
[1754820785565,1.67091681,802.31,801.54,0.889]
[1754820786867,1.67091681,802.37,801.55,0.70156464]
[1754820787065,1.67091681,802.37,801.56,0.70156464]
[1754820787267,1.67091681,802.6,801.57,0.70156464]
[1754820787466,1.67091681,802.58,801.54,0.889]
[1754820787665,1.67091681,802.59,801.55,0.70171778]
[1754820787869,1.67091681,802.58,801.56,0.70171778]
[1754820788068,1.67091681,802.58,801.54,0.889]
[1754820788269,1.67091681,802.55,801.54,0.889]
[1754820788865,1.67091681,802.54,801.54,0.889]
[1754820790069,1.67091681,802.55,801.54,0.889]
[1754820790271,1.67091681,802.37,801.54,0.889]
[1754820791269,1.67091681,802.32,801.54,0.889]
[1754820791572,1.67091681,802.28,801.54,0.889]
[1754820793175,1.67091681,802.29,801.54,0.889]
[1754820795272,1.67091681,802.31,801.54,0.889]
[1754820796278,1.67091681,802.3,801.54,0.889]
[1754820796776,1.67091681,802.29,801.54,0.889]
[1754820797071,1.67091681,802.38,801.55,0.70186444]
[1754820797272,1.67091681,802.38,801.56,0.70186444]
[1754820797474,1.67091681,802.38,801.57,0.70186444]
[1754820797775,1.67091681,802.38,801.54,0.889]
[1754820797776,1.67091681,802.38,801.58,0.70186444]
[1754820797975,1.67091681,802.38,801.59,0.70186444]
[1754820798271,1.67091681,802.38,801.54,0.889]
[1754820798475,1.67091681,802.38,801.55,0.70199446]
[1754820798675,1.67091681,802.38,801.56,0.70199446]
[1754820798972,1.67091681,802.38,801.57,0.70199446]
[1754820799178,1.67091681,802.37,801.58,0.70199446]
[1754820799378,1.67091681,802.37,801.59,0.70199446]
[1754820799678,1.67091681,802.37,801.6,0.70199446]
[1754820799975,1.67091681,802.35,801.54,0.889]
[1754820800176,1.67091681,802.34,801.55,0.70241076]
[1754820800375,1.67091681,802.34,801.56,0.70248569]
[1754820800573,1.67091681,802.4,801.57,0.70248569]
[1754820800775,1.67091681,802.4,801.58,0.70248569]